Cogmind - Beta 15 @@@ ROGUE MODE // 2025.05.31 @ 17:54:20 Player: ldi (hl). (hl) Result: Destroyed by 37-ZVD(R) with Subdweller Laser Performance ------------- Evolutions (0) 0 Regions Visited (3) 600 Robots Destroyed (11) 55 Value Destroyed (400) 400 Prototype IDs (0) 0 Alien Tech Used (0) 0 Bonus (0) 0 TOTAL SCORE: 1055 Bonus ------- None Cogmind --------- Core Integrity 0/250 Matter 298/300 Energy 100/100 System Corruption 1% Temperature Cool (6) Movement Core (50) Location -10/Subcaves Parts ------- > --- POWER (1) -------- (None) > --- PROPULSION (2) --- (None) > --- UTILITY (2) ------ (None) > --- WEAPON (2) ------- (None) > --- INVENTORY (5) ---- Ion Engine High-capacity Matter Pod (200) Sensor Drone Bay Peak State ------------ > --- POWER ------------ Ion Engine > --- PROPULSION ------- Aluminum Leg Aluminum Leg > --- UTILITY ---------- Improved Heat Sink Small Storage Unit > --- WEAPON ----------- Medium Laser Assault Rifle > --- INVENTORY -------- High-capacity Matter Pod Sensor Drone Bay Light Assault Rifle [Rating: 10] Favorites ----------- Power Light Ion Engine Engine Light Ion Engine Propulsion Aluminum Leg Leg Aluminum Leg Flight Unit Flight Unit Utility Small Storage Unit Device Heat Sink Storage Small Storage Unit Weapon Medium Laser Energy Gun Medium Laser Ballistic Gun Light Assault Rifle Build | -11 -10 -10 -10 ------- Run | Yrd Mat Min Sub Slots Evolved . | . . . . Power . | . . . . Propulsion . | . . . . Utility . | . . . . Weapon . | . . . . Parts Attached 14 | 6 1 3 4 Power 2 | 1 . 1 . Engine 2 | 1 . 1 . Core . | . . . . Reactor . | . . . . Propulsion 4 | 2 . 1 1 Treads . | . . . . Leg 3 | 2 . 1 . Wheel . | . . . . Hover . | . . . . Flight 1 | . . . 1 Utility 3 | 1 1 1 . Device 2 | . 1 1 . Storage 1 | 1 . . . Processor . | . . . . Hackware . | . . . . Protection . | . . . . Artifact . | . . . . Weapon 5 | 2 . . 3 Energy Gun 3 | 2 . . 1 Energy Cannon . | . . . . Ballistic Gun 2 | . . . 2 Ballistic Cannon . | . . . . Launcher . | . . . . Special Weapon . | . . . . Impact Weapon . | . . . . Slashing Weapon . | . . . . Piercing Weapon . | . . . . Special Melee Weapon . | . . . . Unidentified Prototypes . | . . . . Parts Lost 11 | . . 3 8 Power 1 | . . 1 . Propulsion 4 | . . 1 3 Utility 1 | . . . 1 Weapon 5 | . . 1 4 Highest Loss Streak 5 | . . 3 5 To Critical Strikes . | . . . . Average Backups 2 | . 1 2 3 Power . | . 1 . . Propulsion . | . . . . Utility 1 | . . 1 2 Weapon . | . . . . Tool/Special . | . . . . Unused Backups 3 | . . 1 2 Power . | . . . . Propulsion 1 | . . 1 . Utility 2 | . . . 2 Weapon . | . . . . Tool/Special . | . . . . Average Slot Usage (%) 85 | . 97 92 31 Engine 12 | . 14 13 2 Leg 24 | . 28 27 2 Flight 1 | . . . 8 Device 11 | . 11 14 1 Storage 12 | . 14 14 2 Energy Gun 19 | . 28 21 3 Ballistic Gun 1 | . . . 9 Peak Build Rating 10 | 6 7 9 10 Average Rating 6 | 4 6 7 3 On Entrance 5 | . 6 7 9 Naked Turns 27 | . . . 27 Heaviest Build 13 | 11 12 13 13 Greatest Support 20 | 20 20 20 20 Greatest Overweight (x) 1 | . . 1 1 Average Overweight (x) . | . . . . Largest Inventory Capacity 8 | 8 8 8 8 Average Capacity 7 | 6 8 8 5 Most Carried 4 | 1 1 4 4 Average Carried 2 | . 1 2 3 Final Capacity 8 | 8 8 8 5 Final Carried 4 | 1 1 4 3 Class Distribution -------------------- 100% | Mutant Dominant Class ---------------- Mutant | -10/Materials Mutant | -10/Mines Mutant | -10/Subcaves Resources | -11 -10 -10 -10 ----------- Run | Yrd Mat Min Sub Matter Collected 551 | 257 13 205 76 Remotely . | . . . . Salvage Created 438 | . 30 321 87 Parts 10 | . 3 5 2 Haulers Intercepted . | . . . . Recyclers Shooed . | . . . . Parts Field Recycled . | . . . . Retrieved Matter . | . . . . Parts Self-Destructed 2 | . . . 2 Prevented . | . . . . Kills | -11 -10 -10 -10 ------- Run | Yrd Mat Min Sub Combat Hostiles Destroyed 11 | . 2 7 2 Guns 11 | . 2 7 2 Classes Destroyed 3 | . 1 1 1 Swarmer 2 | . 2 . . Grunt 7 | . . 7 . Subdweller 2 | . . . 2 Best Kill Streak 2 | . 2 2 1 Combat Bots Only 2 | . 2 2 1 Max Kills in Single Turn 1 | . 1 1 1 Gunslinging . | . . . . Exploded . | . . . . Melee . | . . . . Uniques/NPCs Destroyed . | . . . . Combat | -11 -10 -10 -10 -------- Run | Yrd Mat Min Sub Hostile Shots Fired 86 | . 5 40 41 Missed 21 | . 1 8 12 Hits 65 | . 4 32 29 Projectile 65 | . 4 32 29 Critical Strikes 2 | . . 1 1 Damage Taken 1088 | . 28 411 649 Core 263 | . 6 50 207 Absorbed by Shields . | . . . . Core Remaining (%) 100 | 100 . . . Volleys Fired 62 | . 2 38 22 Largest 2 | . 2 2 2 Hottest 90 | . 90 90 80 Shots Fired 97 | . 4 62 31 Gun 97 | . 4 62 31 Cannon . | . . . . Launcher . | . . . . Special . | . . . . Kinetic 23 | . . . 23 Thermal 74 | . 4 62 8 Explosive . | . . . . Electromagnetic . | . . . . Robot Hit Streak 14 | . 1 14 12 Robot Miss Streak 2 | . 1 2 2 Penetration Max . | . . . . Secondary Targets 1 | . . . 1 Max Gunslinging Chain 1 | . . . 1 Shots Hit Robots 79 | . 2 50 27 Core Hits 28 | . 2 19 7 Critical Kills . | . . . . Critical Parts Destroyed . | . . . . Critical Strikes 6 | . . 6 . Burn 6 | . . 6 . Melee Attacks . | . . . . Impact . | . . . . Slashing . | . . . . Piercing . | . . . . Sneak Attacks . | . . . . Combat Hostiles . | . . . . Follow-up Attacks . | . . . . Damage Inflicted 904 | . 22 588 294 Guns 904 | . 22 588 294 Cannons . | . . . . Explosions . | . . . . Melee . | . . . . Ramming . | . . . . Kinetic 183 | . . . 183 Thermal 721 | . 22 588 111 Explosive . | . . . . Electromagnetic . | . . . . Impact . | . . . . Slashing . | . . . . Piercing . | . . . . Highest Corruption 1 | . 1 1 1 Average Corruption 1 | . 1 1 1 Corruption Purged . | . . . . Corruption Blocked . | . . . . Effects 5 | . . 4 1 Message Errors 2 | . . 2 . Heat Flow Errors 1 | . . 1 . Energy Discharges 1 | . . 1 . Misfires 1 | . . . 1 Overload Shots . | . . . . Overflow Damage . | . . . . Projectiles . | . . . . Explosions . | . . . . Melee . | . . . . Knockbacks . | . . . . Impact . | . . . . Kinetic . | . . . . Secondary . | . . . . Self-Inflicted Damage . | . . . . Shots . | . . . . Rammed . | . . . . Targets Rammed . | . . . . Kicked . | . . . . Crushed . | . . . . Highest Temperature 244 | . . 146 244 Average Temperature 61 | . . 58 88 Received Heat Transfer 715 | . . 261 454 Siege Activations . | . . . . Martial Activations . | . . . . Shielding Activations . | . . . . Robots Disrupted . | . . . . Combat Hostiles . | . . . . Robots Corrupted . | . . . . Combat Hostiles . | . . . . Parts Fried . | . . . . Impact Corruptions . | . . . . Robots Melted . | . . . . Combat Hostiles . | . . . . Parts Melted 10 | . . 10 . Heat Transferred 2339 | . 50 2066 223 Parts Sabotaged . | . . . . Parts Stolen . | . . . . Parts Stripped . | . . . . Power Chain Reactions . | . . . . Alert | -11 -10 -10 -10 ------- Run | Yrd Mat Min Sub Maximum Alert Level . | . . . . Low Security (%) 100 | 100 100 100 . Level 1 . | . . . . Level 2 . | . . . . Level 3 . | . . . . Level 4 . | . . . . Level 5 . | . . . . High Security . | . . . . Max Security . | . . . . Peak Influence 65 | . 65 62 . Initial 12 | . . 12 . Average 13 | . 23 11 . Influence Increases 304 | . 88 216 . Destroy 0b10 Robot/C 180 | . 40 140 . Destroy Leader 50 | . 10 40 . Allied During Kill 6 | . . 6 . Successful Hack 23 | . 23 . . Disable Machine 15 | . . 15 . Lose Combat Pursuer 30 | . 15 15 . Influence Decreases 304 | . 56 214 34 Entered New Map 38 | . . 20 18 Time Decay 210 | . 56 154 . Lost Part 16 | . . . 16 Lost Ally 40 | . . 40 . Squads Dispatched . | . . . . Investigation . | . . . . Extermination . | . . . . Reinforcement . | . . . . Assault . | . . . . Garrison . | . . . . Intercept . | . . . . Searches Triggered . | . . . . Construction Impeded . | . . . . Haulers Reinforced . | . . . . Active Scanning Responses . | . . . . Cargo Convoy Interrupts . | . . . . Stealth | -11 -10 -10 -10 --------- Run | Yrd Mat Min Sub Distress Signals . | . . . . Communications Jammed . | . . . . Distress Signals . | . . . . Times Spotted 15 | . 3 8 4 Peak Tracking Total 3 | . 3 2 3 Tactical Retreats 2 | . 1 1 . Traps | -11 -10 -10 -10 ------- Run | Yrd Mat Min Sub Traps Triggered 1 | . 1 . . Indirectly . | . . . . Trap Hack Attempts . | . . . . Triggered . | . . . . Disarmed . | . . . . Reprogrammed . | . . . . Reused . | . . . . Traps Extracted . | . . . . Installed . | . . . . Triggered . | . . . . Machines | -11 -10 -10 -10 ---------- Run | Yrd Mat Min Sub Machines Disabled 1 | . . 1 . Max in Single Turn . | . . . . Machines Repaired . | . . . . Machines Dismantled . | . . . . Machines Sabotaged . | . . . . Overloaded Fab Kills . | . . . . Hacking | -11 -10 -10 -10 --------- Run | Yrd Mat Min Sub Machines Accessed 3 | . 2 1 . Terminals 2 | . 2 . . Fabricators . | . . . . Repair Stations . | . . . . Recycling Units . | . . . . Scanalyzers . | . . . . Garrison Access . | . . . . Total Hacks 6 | . 5 1 . Successful 3 | . 2 1 . Failed 3 | . 3 . . Catastrophic 2 | . 2 . . Database Lockouts . | . . . . Manual 4 | . 4 . . Terminals 5 | . 5 . . Fabricators . | . . . . Repair Stations . | . . . . Recycling Units . | . . . . Scanalyzers . | . . . . Garrison Access . | . . . . Terminal Hacks 3 | . 2 1 . Part Schematic 1 | . 1 . . Open Door 1 | . . 1 . Branch Access Points 1 | . 1 . . Fabricator Hacks . | . . . . Repair Station Hacks . | . . . . Recycling Unit Hacks . | . . . . Scanalyzer . | . . . . Garrison Access Hacks . | . . . . Unauthorized Hacks . | . . . . Terminals . | . . . . Fabricators . | . . . . Repair Stations . | . . . . Recycling Units . | . . . . Scanalyzers . | . . . . Garrison Access . | . . . . Data Cores Recovered . | . . . . Used . | . . . . Hacking Detections 1 | . 1 . . Full Trace Events 1 | . 1 . . Feedback Events . | . . . . Feedback Blocked . | . . . . Robot Schematics Acquired . | . . . . Robots Built . | . . . . Authchips . | . . . . Time . | . . . . Total Robot Build Rating . | . . . . Part Schematics Acquired 1 | . 1 . . Parts Built . | . . . . Authchips . | . . . . Time . | . . . . Total Part Build Rating . | . . . . Parts Repaired . | . . . . Time . | . . . . Parts Recycled . | . . . . Recycled Matter . | . . . . Retrieved Matter . | . . . . Retrieved Components . | . . . . Parts Scanalyzed . | . . . . Part Schematics Acquired . | . . . . Parts Damaged . | . . . . Bothacking | -11 -10 -10 -10 ------------ Run | Yrd Mat Min Sub Used RIF Installer . | . . . . Robots Hacked . | . . . . Non-combat . | . . . . Combat . | . . . . Robot Hacks Applied . | . . . . Relay Couplers Released . | . . . . Fabnet Peak Effective % . | . . . . Robots Rewired . | . . . . Allies Hacked . | . . . . Hacks Repelled . | . . . . Allies | -11 -10 -10 -10 -------- Run | Yrd Mat Min Sub Total Allies 2 | . . 2 . Largest Group 2 | . . 2 . Highest-Rated Group 44 | . . 44 . Highest-Rated Ally 31 | . . 31 . Total Orders . | . . . . Ally Attacks 5 | . . 5 . Total Damage 64 | . . 64 . Kills . | . . . . Allies Corrupted . | . . . . Allies Melted . | . . . . Intel | -11 -10 -10 -10 ------- Run | Yrd Mat Min Sub Active Infowar (turns) . | . . . . Robot Analysis Total . | . . . . Derelict Logs Recovered 1 | . . 1 . Drone Launches . | . . . . Drone Recoveries . | . . . . Exploration | -11 -10 -10 -10 ------------- Run | Yrd Mat Min Sub Turns Passed 1125 | 57 162 762 144 Spaces Moved 894 | 46 129 539 180 Core 53 | 10 . . 43 Treads . | . . . . Legs 706 | 36 129 539 2 Wheels . | . . . . Hover . | . . . . Flight 135 | . . . 135 Fastest Speed 40 | 50 120 120 40 Average Speed 104 | 104 120 120 46 Slowest Speed 190 | 120 120 190 120 Overloaded Moves . | . . . . Propulsion Burnouts . | . . . . Robots Hopped 1 | . . . 1 Potential Cave-ins . | . . . . Cave-ins Triggered . | . . . . Exploration Rate (%) 30 | 3 19 95 4 Regions Visited 3 Branch Regions 2 Pre-discovered Areas 1 | . . 1 . Known Exits Taken 1 | . 1 . . Unknown Exits Taken 2 | 1 . 1 . Scrap Searched 1 | . . 1 . Spaces Dug . | . . . . Terrain Destroyed . | . . . . Melee . | . . . . Projectile . | . . . . AOE . | . . . . Terrain Rammed . | . . . . Walls Destroyed . | . . . . Machines Disabled . | . . . . Actions | -11 -10 -10 -10 --------- Run | Yrd Mat Min Sub Total 986 | 52 131 591 212 Wait 7 | . . 4 3 Move 889 | 45 128 538 178 Hop 1 | . . . 1 Pick Up 8 | 1 . 6 1 Fast Attach 11 | 6 1 1 3 Attach 4 | . . 1 3 Detach 1 | . . . 1 Swap 1 | . . 1 . Drop 2 | . . 2 . Fire 62 | . 2 38 22 Melee . | . . . . Ram . | . . . . Kick . | . . . . Crush . | . . . . Escape Stasis . | . . . . Rewire . | . . . . Trap . | . . . . Miscellaneous . | . . . . Route ------- -11/Scrapyard -10/Materials -10/Mines (discovered 4 exits: [*Mat x2] / [*Exi] / [*Sub]) -10/Subcaves History --------- Turn | Location | Event 5 | -11/Scrapyard | Discovered new exit (range 15) 58 | -11/Scrapyard | Entered Materials 91 | -10/Materials | Identified exit to Mines 220 | -10/Materials | Entered Mines 251 | -10/Mines | Learned location of Storage (-8) 251 | -10/Mines | Discovered new exit (range 14) 300 | -10/Mines | Build established: Mutant 326 | -10/Mines | Deemed a non-threat by the Exiles lab entrance 326 | -10/Mines | Discovered new exit (range 5) 430 | -10/Mines | Found the Drone Emporium 434 | -10/Mines | Found Prototype Device 646 | -10/Mines | Lost 3 parts (1p1n1w) 657 | -10/Mines | Found DCF Scrap (12 items) 660 | -10/Mines | Discovered new exit (range 15) 973 | -10/Mines | Discovered new exit (range 8) 982 | -10/Mines | Entered Subcaves 983 | -10/Subcaves | Approached by a straggling Scientist 984 | -10/Subcaves | Ambushed by Subdwellers from Twisted Machinery 1005 | -10/Subcaves | Released all parts (3) 1006 | -10/Subcaves | Core integrity fell below 50% 1019 | -10/Subcaves | Shifting Twisted Machinery released Mak. Sword 1034 | -10/Subcaves | Lost 5 parts (2n1u2w) 1092 | -10/Subcaves | Core integrity fell below 20% 1126 | -10/Subcaves | Destroyed by 37-ZVD(R) with Subdweller Laser Last Messages --------------- 01006_ Critical hit (Meltdown: +280). 01007_ 9K-4V2(R) affixes Scrap Shield Fragment to Scrap Shield. Mak. Sword falls loose from the Twisted Machinery. 01028_ Acquired Flight Unit. 01029_ Acquired 16 matter. 01031_ 37-ZVD(R): "WEHOME!" 01048_ Acquired Lgt. Assault Rifle. 01049_ Acquired 41 matter. 01053_ System corrupted: FCS attempts to trigger Lgt. Assault Rifle. 01053_ System corrupted: Lgt. Assault Rifle misfires. 01063_ 9K-4V2(R) destroyed. 01064_ Subatomizers dissect the Sub. Power Source. 01065_ Acquired 9 matter. 01069_ Acquired Sub. Laser. 01071_ Acquired 10 matter. 01078_ Subatomizers dissect the Sub. Power Source. 0I-HC5(c): "I think it's somewhere west of here" 01112_ Flight Unit destroyed. 01114_ Sub. Laser destroyed. 01122_ Lgt. Assault Rifle destroyed. Map ----- +----------------------------------------------------+ | ?????????????????????????????????????????????????? | | ?????????????????????????????????????????????????? | | ?????????????????????????????????????????????????? | | ?????????????????????????????????????????????????? | | ?????????????????????????????????????????????????? | | ?????????????????????????????????????????????????? | | ?????????????????????????????????????????????????? | | ?????????????????????????????????????????????????? | | ?????????????????????????????????????????????????? | | ?????????????????????????????????????????????????? | | ?????????????????????????????????????????????????? | | ?????????????????????????????????????????????????? | | ?????????????????????????????????????????????????? | | ?????????????????????????????????????????????????? | | ??????????????????###########????????????????????? | | ??????????????????# #????????????????????? | | ????????????????### #????????????????????? | | ????????????????# " ## ## ##????????????????????? | | ???????????????#"""""#### #?????????????????????? | | ???????????????#"%#%##??# #?????????????????????? | | ???????????????#"#"""???# ##????????????????????? | | ??????????????# ?#"#???## #????????????????????? | | ??????????????# ??#"#???## ####???????#####?????? | | ??????????????#???#"#???# # ######?## #?????? | | ???????????????# ???????##c ### %"#?????? | | ???????????????? ??####@## ## # # ##?????? | | ?????????????# """""#"#R###### & * ! ##??????? | | ??????????????"""/ " " #### &%&%! #???????? | | ??????????????""""""#"#### #?# ### ##???????? | | ????????????????????##???# #?## ### ##???????? | | ?????????????????????????## ##??# ## # ##### "" | | ??????????????????????????# #?## "" | | ??????????????????????????# ### "" "" | | ??????????????????????????# ## ###### "" | | ??????????????????????????# ####???????### | | ?????????????????????????# # ## #???????????? | | ?????????????????????????####### #??????????? | | ???????????????????????????????##### "#??????????? | | ????????????????????????????????????###??????????? | | ?????????????????????????????????????????????????? | | ?????????????????????????????????????????????????? | | ?????????????????????????????????????????????????? | | ?????????????????????????????????????????????????? | | ?????????????????????????????????????????????????? | | ?????????????????????????????????????????????????? | | ?????????????????????????????????????????????????? | | ?????????????????????????????????????????????????? | | ?????????????????????????????????????????????????? | | ?????????????????????????????????????????????????? | | ?????????????????????????????????????????????????? | +----------------------------------------------------+ Best States ------------- Heat Dissipation 39 Energy Generation 10 Energy Capacity 250 Matter Stores 300 Matter Capacity 300 Sight Range 16 Terrain Scan Density 10 Evasion (%) 62 Item Schematics ----------------- Lrg. Battery | -10/Materials | Hacked Robot Schematics ------------------ None Fabricated ------------ Nothing Repaired ---------- Nothing Alien Tech Used ----------------- None Achievements -------------- None Challenges ------------ None Game ------ Seed SmartScanThruster Manual? 0 Play Time 00:08:48 Cumulative 637.5 hours Start 2025.05.31 @ 17:42:09 End 2025.05.31 @ 17:54:20 Sessions 1 Manual Loads 0 Difficulty Rogue Special Mode None Game No. 411 Rogue 411 Adventurer 0 Explorer 0 Win Type - Total 38 Types 25/1/6/6/0/0/0/0/0/0 Lore% 67 Gallery% 73 Achievement% 78 Wizard Run 0 Options --------- Layout 0 ASCII 1 Keyboard 0 Movement Numpad Keybinds 0 Fullscreen 1 Font 24/Smallcaps Map View 76x50 Zoom Use 0% Tactical HUD 1 Map Filters NONE Filters NONE Steam 1 RUN: 3b14ecda-33bf-429e-bf2d-16db1a344c59